bitfinex-derivatives/quotes_ETHF0:USTF0_20241228
["timestamp","ask_amount","ask_price","bid_price","bid_amount"]
[1735385988716,0.29872,3353.2,3353.1,0.74874005]
[1735385992617,0.29873,3353.1,3352.9,1.04748005]
[1735385993015,0.4485,3353.0,3352.9,1.04748005]
[1735385994316,0.4485,3353.0,3352.9,0.29874]
[1735385994514,0.4485,3353.0,3352.9,1.04748005]
[1735385997422,0.4688,3353.3,3353.2,0.29872]
[1735385997623,1.08812,3353.5,3353.1,0.74874005]
[1735385997828,1.08812,3353.5,3353.4,1.04744005]
[1735385998221,1.08812,3353.5,3353.4,0.74874005]
[1735385998622,1.08812,3353.5,3353.4,1.04744005]
[1735385998923,1.38681,3353.5,3353.3,0.29871]
[1735385999524,1.08812,3353.5,3353.3,0.29871]
[1735386001125,1.08812,3353.5,3353.4,0.2987]
[1735386001922,1.08812,3353.5,3353.4,1.04744005]
[1735386005628,0.63752,3353.5,3353.4,1.04744005]
[1735386044050,0.93621,3353.5,3353.4,4.68005521]
[1735386044256,4.14401,3353.5,3353.4,4.68005521]
[1735386044649,4.57131,3353.5,3353.4,4.68005521]
[1735386045047,4.27262,3353.5,3353.2,0.74874005]
[1735386045254,0.4446,3353.4,3353.2,0.29872]
[1735386045453,0.4446,3353.4,3353.2,0.72842]
[1735386045758,0.4446,3353.4,3353.2,0.4297]
[1735386045954,0.4446,3353.4,3353.3,0.29871]
[1735386046353,3.84532,3353.5,3353.4,0.2987]
[1735386046550,0.63752,3353.5,3353.4,0.2987]
[1735386053868,0.63752,3353.5,3353.4,4.97875521]
[1735386062380,0.63752,3353.5,3353.4,0.2987]
[1735386066485,1e-08,3353.5,3353.4,0.2987]
[1735386066681,1e-08,3353.5,3353.4,0.7383]
[1735386066877,1e-08,3353.5,3353.4,5.41835521]
[1735386067178,1e-08,3353.5,3353.4,46.21835521]
[1735386067884,7.05723925,3354.1,3354.0,0.29865]
[1735386068084,3.6456,3354.3,3354.0,0.74874005]
[1735386068287,3.6456,3354.3,3354.2,1.04737005]
[1735386074390,3.2078,3354.3,3354.2,1.04737005]
[1735386078294,0.8928,3354.4,3354.3,0.29862]
[1735386080196,0.8928,3354.4,3354.3,0.75712]
[1735386081296,0.8928,3354.4,3354.3,0.29862]
[1735386082189,0.8928,3354.4,3354.0,0.4585]
[1735386082396,0.29863,3354.3,3354.2,0.74874005]
[1735386082893,0.8928,3354.4,3354.2,0.74874005]
[1735386083098,1.19142,3354.4,3354.2,0.74874005]
[1735386084193,0.29862,3354.3,3354.2,0.74874005]
[1735386085599,1.19142,3354.4,3354.2,1.04737005]
[1735386086393,0.8928,3354.4,3354.3,0.29862]
[1735386086697,9.54791275,3354.6,3354.5,0.2986]
[1735386086996,9.54791275,3354.6,3354.5,0.74874005]
[1735386087196,10.72221275,3354.6,3354.4,0.29861]
[1735386087392,10.72221275,3354.6,3354.5,0.74874005]
[1735386087892,4.8486,3354.6,3354.5,0.74874005]
[1735386088796,4.55,3354.6,3354.5,0.74874005]
[1735386092001,4.55,3354.6,3354.5,1.04734005]
[1735386092599,4.55,3354.6,3354.5,0.74874005]
[1735386093097,4.55,3354.6,3354.5,1.04734005]
[1735386095604,3.2078,3355.0,3354.5,0.74874005]
[1735386095800,3.50636,3355.0,3354.9,0.74874005]
[1735386099299,3.50636,3355.0,3354.9,1.04731005]
[1735386100011,3.2078,3355.0,3354.7,0.74874005]
[1735386100210,0.29857,3354.9,3354.8,0.29857]
[1735386100708,0.29858,3354.8,3354.7,1.04732005]
[1735386102404,3.2078,3355.0,3354.7,0.74874005]
[1735386102606,3.2078,3355.0,3354.9,1.04731005]
[1735386103912,0.878,3355.1,3354.9,0.74874005]
[1735386104112,0.878,3355.1,3355.0,0.29856]
[1735386106409,1.17655,3355.1,3355.0,0.29856]
[1735386108417,9.37994275,3355.4,3355.3,0.29853]
[1735386108714,0.29854,3355.3,3355.2,0.29853]
[1735386109818,10.26944275,3355.4,3355.3,0.29853]
[1735386111038,4.39583,3355.4,3355.3,0.29853]
[1735386112217,10.26944275,3355.4,3355.3,0.29853]
[1735386112917,7.06164275,3355.4,3355.3,0.29853]
[1735386113120,10.26944275,3355.4,3355.3,0.29853]
[1735386114017,0.29854,3355.3,3355.2,0.29853]
[1735386115015,10.26944275,3355.4,3355.3,0.29853]
[1735386115613,9.97091275,3355.4,3355.3,0.29853]
[1735386115815,10.26944275,3355.4,3355.3,0.29853]
[1735386116417,4.39583,3355.4,3355.3,0.29853]
[1735386117621,4.39583,3355.4,3355.3,1.19863]
[1735386118524,4.0973,3355.4,3355.3,1.19863]
[1735386118925,4.39583,3355.4,3355.3,1.19863]
[1735386119425,4.39583,3355.4,3355.3,0.9001]
[1735386119729,4.39583,3355.4,3355.3,1.19864]
[1735386120019,4.39583,3355.4,3355.3,0.9001]
[1735386120220,4.0973,3355.4,3355.2,0.74874005]
[1735386120422,0.29854,3355.3,3355.2,1.04728005]
[1735386121228,4.0973,3355.4,3355.3,0.29853]
[1735386121229,3.2078,3355.4,3355.3,0.29853]
[1735386121626,3.2078,3355.4,3355.3,1.19263]
[1735386123030,9.07224731,3355.4,3355.3,0.76863]
[1735386123223,9.07224731,3355.4,3355.3,1.51737005]
[1735386123527,9.50054731,3355.4,3355.3,1.51737005]
[1735386126634,9.07224731,3355.4,3355.3,1.51737005]
[1735386127831,3.2078,3355.4,3355.3,1.51737005]
[1735386128324,5.86444731,3355.7,3355.3,1.21884005]
[1735386128526,5.86444731,3355.7,3355.6,1.04725005]
[1735386128825,5.86444731,3355.8,3355.7,0.2985]
[1735386129030,5.86444731,3355.8,3355.7,0.7345]
[1735386129229,5.0819673,3355.8,3355.7,1.48324005]
[1735386129627,4.3765673,3355.8,3355.7,1.48324005]
[1735386129933,0.466,3356.6,3356.5,0.29843]
[1735386130132,0.466,3356.6,3356.5,1.04717005]
[1735386130832,7.05723925,3357.1,3356.5,0.74874005]
[1735386131033,0.9181,3357.0,3356.9,0.74874005]
[1735386131528,0.93326714,3357.0,3356.9,0.74874005]
[1735386131938,1.23164714,3357.0,3356.9,0.74874005]
[1735386132123,0.93326714,3357.0,3356.9,0.74874005]
[1735386133739,1.23164714,3357.0,3356.8,1.57781647]
[1735386133936,0.29839,3356.9,3356.8,1.57781647]
[1735386134237,1.23165714,3357.0,3356.8,1.57781647]
[1735386134536,0.01516714,3356.9,3356.8,1.57781647]
[1735386134933,0.01516714,3356.9,3356.5,1.57781647]
[1735386135134,0.31356714,3356.9,3356.5,1.87623647]
[1735386135438,0.31356714,3356.9,3356.5,1.57781647]
[1735386135632,0.01516714,3356.7,3356.6,0.29841]
[1735386137838,0.01516714,3356.7,3356.5,1.87623647]
[1735386138537,0.01516714,3356.6,3356.5,1.87623647]
[1735386138836,0.01516714,3356.6,3356.5,1.57781647]
[1735386139242,0.01516714,3356.6,3356.5,1.87624647]
[1735386139428,0.01516714,3356.6,3356.5,1.57781647]
[1735386142438,0.01516714,3356.6,3356.5,1.87624647]
[1735386143239,0.01516714,3356.6,3356.5,1.57781647]
[1735386143439,0.01516714,3356.6,3356.5,1.87624647]
[1735386143740,0.01516714,3356.6,3356.5,0.29843]
[1735386144343,0.01516714,3356.6,3356.3,2.03121647]
[1735386144531,0.01516714,3356.5,3356.4,0.29843]
[1735386145642,0.01516714,3356.5,3356.4,0.29844]
[1735386146242,0.03028666,3356.5,3356.4,0.29844]
[1735386147346,0.04540618,3356.5,3356.4,0.29844]
[1735386148547,0.05607823,3356.5,3356.4,0.29844]
[1735386148955,0.51977823,3356.5,3355.8,0.29849]
[1735386149244,3.2078,3356.2,3355.6,1.57781647]
[1735386149452,0.29851,3355.7,3355.6,1.57781647]
[1735386149648,0.35458823,3355.7,3355.6,1.57781647]
[1735386149848,0.35458823,3355.7,3355.4,1.89693]
[1735386150146,0.29853,3355.5,3355.3,45.58561647]
[1735386150339,0.4624,3355.4,3355.3,45.88416647]
[1735386150743,0.51847823,3355.4,3355.3,44.0078]
[1735386150949,0.81701823,3355.4,3355.3,40.8]
[1735386151250,0.29855,3355.3,3355.0,1.87638647]
[1735386151645,0.05607823,3355.2,3355.0,42.67638647]
[1735386152049,0.4546,3355.1,3355.0,42.67638647]
[1735386152654,0.51067823,3355.1,3355.0,42.67638647]
[1735386153250,0.51067823,3355.1,3355.0,1.87638647]
[1735386156152,0.05607823,3355.1,3355.0,1.87638647]
[1735386160854,0.35463823,3355.1,3355.0,1.57781647]
[1735386161056,0.05607823,3355.1,3355.0,1.87638647]
[1735386161252,0.35463823,3355.1,3355.0,1.57781647]
[1735386161553,0.29857,3355.0,3354.9,0.4446]
[1735386161754,0.80324823,3355.0,3354.9,0.4446]
[1735386163256,0.50467823,3355.0,3354.7,40.8]
[1735386163465,0.29859,3354.8,3354.7,40.8]
[1735386163854,0.35466823,3354.8,3354.7,40.8]
[1735386164559,0.2986,3354.7,3354.6,0.4547]
[1735386164749,0.78297823,3354.7,3354.6,0.4547]
[1735386164954,0.48437823,3354.7,3354.6,41.2547]
[1735386165858,0.48437823,3354.7,3354.6,41.55331]
[1735386166362,0.48437823,3354.7,3354.6,41.2547]
[1735386166959,0.48437823,3354.7,3354.6,41.55331]
[1735386167862,0.48437823,3354.7,3354.6,41.2547]
[1735386169768,0.78297823,3354.7,3354.6,41.2547]
[1735386169960,0.48437823,3354.7,3354.6,41.2547]
[1735386171164,0.78297823,3354.7,3354.6,41.2547]
[1735386175776,0.78297823,3354.7,3354.6,42.00263774]
[1735386177472,0.78297823,3354.7,3354.6,42.30124774]
[1735386177972,0.78297823,3354.7,3354.6,42.00263774]
[1735386179975,0.48437823,3354.7,3354.4,3.2078]
[1735386180176,0.48437823,3354.7,3354.4,3.50642]
[1735386180177,0.29862,3354.5,3354.4,3.50642]
[1735386180871,0.35469823,3354.5,3354.4,3.50642]
[1735386181081,0.35469823,3354.5,3354.4,3.2078]
[1735386182876,0.35469823,3354.5,3354.3,41.84656774]
[1735386183782,0.05607823,3354.4,3354.3,41.84656774]
[1735386184084,0.05607823,3354.4,3354.3,0.74793774]
[1735386184379,0.52637823,3354.4,3354.3,1.04657774]
[1735386193184,0.05607823,3354.4,3354.3,1.04657774]
[1735386195780,0.05607823,3354.4,3354.3,1.49837774]
[1735386200179,3.2078,3355.2,3354.3,1.49837774]
[1735386200380,3.2078,3355.2,3355.1,0.29857]
[1735386200581,0.4533,3355.4,3355.3,0.29855]
[1735386201181,0.4533,3355.4,3355.2,0.74793774]
[1735386201182,0.4533,3355.4,3355.2,1.04648774]
[1735386202587,0.4533,3355.4,3355.2,0.74793774]
[1735386202789,0.4533,3355.4,3355.2,1.04648774]
[1735386209599,0.4533,3355.4,3355.1,3.96856]
[1735386209800,0.4533,3355.4,3355.2,0.29856]
[1735386213400,0.4533,3355.4,3355.1,3.2078]
[1735386213601,0.4533,3355.4,3355.3,0.29855]
[1735386219401,0.4533,3355.4,3355.3,41.09855]
[1735386223408,0.4344,3355.6,3355.5,0.29853]
[1735386226504,0.4344,3355.6,3355.3,40.8]
[1735386226704,0.74793774,3355.5,3355.3,0.29855]
[1735386226904,0.4672,3355.4,3355.3,0.29855]
[1735386227115,0.8981,3355.4,3355.3,0.29855]
[1735386228008,0.8981,3355.4,3355.1,3.2078]
[1735386228209,0.8981,3355.4,3355.2,0.29855]
[1735386228610,1.19664,3355.4,3355.2,0.29855]
[1735386229712,0.8981,3355.4,3355.1,3.2078]
[1735386230012,0.8981,3355.4,3355.2,0.29855]
[1735386230511,0.8981,3355.4,3355.3,0.29855]
[1735386231508,0.8981,3355.4,3355.2,0.29855]
[1735386232001,0.8981,3355.4,3355.3,0.29855]
[1735386232200,0.8981,3355.4,3355.1,3.2078]
[1735386232511,0.8981,3355.4,3355.2,0.29855]
[1735386233008,0.8981,3355.4,3355.1,3.2078]
[1735386233310,0.8981,3355.4,3355.2,0.29856]
[1735386233511,0.8981,3355.4,3355.1,3.2078]
[1735386233711,0.8981,3355.4,3355.2,0.29856]
[1735386234116,0.8981,3355.4,3355.1,3.2078]
[1735386234309,0.4309,3355.4,3355.3,1.04648774]
[1735386236213,0.29859,3354.9,3354.8,4.67576312]
[1735386236913,0.29861,3354.7,3354.6,0.74793774]
[1735386237414,0.29862,3354.6,3354.4,5.42370086]
[1735386238011,0.29862,3354.5,3354.4,0.74793774]
[1735386239009,0.74793774,3354.7,3354.0,0.4626]
[1735386239208,0.29865,3354.3,3354.0,1.21053774]
[1735386239415,0.9121,3354.2,3354.0,1.50920774]
[1735386240310,0.9121,3354.2,3354.0,1.21053774]
[1735386241319,1.21075,3354.2,3354.0,1.21053774]
[1735386241720,0.9121,3354.2,3354.0,1.21053774]
[1735386242524,1.3446,3354.2,3354.0,1.50919774]
[1735386244018,1.64325,3354.2,3354.0,1.21053774]
[1735386244518,1.3446,3354.2,3354.0,1.21053774]
[1735386245915,1.3446,3354.2,3354.0,1.50920774]
[1735386246317,1.3446,3354.2,3354.1,0.29866]
[1735386246517,0.9121,3354.2,3354.1,0.29866]
[1735386246917,0.4569,3354.2,3354.1,0.29866]
[1735386247219,0.4508,3354.5,3354.3,0.29864]
[1735386247420,0.4508,3354.5,3354.4,0.74793774]
[1735386248016,0.4592,3354.6,3354.4,0.74793774]
[1735386248322,0.4592,3354.6,3354.5,0.29862]
[1735386248620,3.2078,3354.7,3354.5,0.4609]
[1735386248819,3.2078,3354.7,3354.6,1.04654774]
[1735386249518,3.2078,3354.7,3354.6,41.84654774]
[1735386250319,1.63357,3355.2,3354.9,0.29859]
[1735386250622,1.63357,3355.2,3354.9,1.04652774]
[1735386250819,1.63357,3355.2,3354.9,0.74793774]
[1735386250820,0.29857,3355.1,3354.9,0.74793774]
[1735386251322,0.29857,3355.1,3354.8,0.29859]
[1735386251819,0.29858,3355.0,3354.8,0.29859]
[1735386252019,1.335,3355.2,3354.8,0.29859]
[1735386252219,0.29858,3355.1,3354.8,0.29859]
[1735386252421,0.29858,3355.1,3354.9,0.29859]
[1735386254724,1.335,3355.2,3354.9,0.29859]
[1735386254926,0.29858,3355.0,3354.9,0.29859]
[1735386256622,0.29857,3355.1,3355.0,0.29858]
[1735386257121,0.91,3355.2,3354.7,1.19043774]
[1735386257319,0.29858,3355.1,3354.7,1.19043774]
[1735386257531,0.29858,3355.1,3355.0,0.29858]
[1735386258225,0.29857,3355.1,3355.0,0.29858]
[1735386259323,0.29858,3355.0,3354.9,1.04652774]
[1735386259524,0.29858,3355.0,3354.9,0.29859]
[1735386260423,0.2986,3354.8,3354.6,1.91393774]
[1735386260619,0.2986,3354.8,3354.6,2.21254774]
[1735386260814,0.8748,3354.7,3354.6,2.21254774]
[1735386262827,0.8748,3354.7,3354.6,1.91393774]
[1735386263919,0.8748,3354.7,3354.6,1.166]
[1735386264827,1.17341,3354.7,3354.6,1.166]
[1735386265528,0.8748,3354.7,3354.6,1.166]
[1735386265729,0.8748,3354.7,3354.5,41.55952]
[1735386266925,0.8748,3354.7,3354.5,0.4609]
[1735386267227,0.29863,3354.4,3354.3,3.2078]
[1735386267529,0.29865,3354.2,3354.1,0.74793774]
[1735386268329,1.21935,3354.2,3354.1,0.74793774]
[1735386269631,0.9207,3354.2,3354.1,0.74793774]
[1735386270932,0.9207,3354.2,3354.1,1.04659774]
[1735386271127,0.9207,3354.2,3354.1,41.84659774]
[1735386282243,4.25435774,3354.6,3354.4,0.29863]
[1735386282244,0.4591,3354.5,3354.4,0.29863]
[1735386282434,0.4591,3354.5,3354.4,1.04656774]
[1735386282940,3.2078,3354.6,3354.5,0.29862]
[1735386283241,3.2078,3354.6,3354.5,0.75332]
[1735386285434,0.4591,3354.9,3354.5,0.4547]
[1735386285635,0.4591,3354.9,3354.8,0.2986]
[1735386285841,0.4686,3355.2,3355.0,0.29857]
[1735386286043,0.4686,3355.2,3355.1,0.29857]
[1735386289946,0.4686,3355.2,3355.1,1.04650774]
[1735386295151,0.4686,3355.2,3355.1,0.29857]
[1735386299247,1.21653774,3355.2,3354.6,4.67576312]
[1735386299448,0.74088,3355.1,3354.8,0.29859]
[1735386299653,0.4423,3355.1,3354.8,0.74793774]
[1735386299955,0.4686,3355.2,3355.0,0.29858]
[1735386300155,0.9109,3355.2,3355.0,0.29858]
[1735386300954,0.29858,3355.1,3354.8,0.29859]
[1735386301252,0.29858,3355.1,3354.9,0.29859]
[1735386301443,1.65883774,3355.2,3354.9,0.29859]
[1735386301649,0.9109,3355.2,3355.1,0.29857]
[1735386301849,0.9109,3355.2,3354.7,0.74793774]
[1735386301850,1.65883774,3355.2,3355.0,0.29858]
[1735386302749,1.95740774,3355.2,3354.9,0.29858]
[1735386303146,1.65883774,3355.2,3354.5,3.646]
[1735386303356,0.2986,3354.8,3354.6,0.29861]
[1735386303554,0.8717,3354.7,3354.6,0.29861]
[1735386303749,1.3249,3354.7,3354.6,0.29861]
[1735386304354,0.74793774,3355.2,3354.6,0.29861]
[1735386304652,0.8776,3355.2,3355.1,0.29857]
[1735386305453,1.62553774,3355.2,3355.0,0.29857]
[1735386305656,1.92410774,3355.2,3354.9,0.29858]
[1735386305952,1.62553774,3355.2,3354.8,0.2986]
[1735386306156,1.62553774,3355.2,3354.9,0.29858]
[1735386306547,1.92409774,3355.2,3354.9,0.29858]
[1735386306749,1.62553774,3355.2,3354.7,0.4444]
[1735386306957,0.8776,3355.2,3355.1,0.29857]
[1735386307151,0.8776,3355.2,3355.0,0.29857]
[1735386307355,0.8776,3355.2,3354.8,0.74793774]
[1735386307754,0.8776,3355.2,3354.9,3.2078]
[1735386308158,0.8776,3355.2,3355.0,0.29858]
[1735386310955,0.8776,3355.2,3355.1,0.29857]
[1735386316759,0.74793774,3355.5,3355.0,0.74793774]
[1735386316959,0.4696,3355.4,3355.3,0.29855]
[1735386318363,0.4696,3355.4,3355.3,0.76075]
[1735386320567,0.4696,3355.4,3355.3,0.29855]
[1735386329266,0.4696,3355.4,3355.2,0.74793774]
[1735386329469,1.21753774,3355.4,3355.1,4.67576312]
[1735386329674,4.42533774,3355.4,3355.1,4.67576312]
[1735386329967,0.29856,3355.2,3355.1,4.67576312]
[1735386330571,1.04649774,3355.2,3355.1,4.67576312]
[1735386330768,0.74793774,3355.2,3354.9,4.67576312]
[1735386330968,1.22128,3355.1,3354.9,4.67576312]
[1735386331470,0.74918,3355.0,3354.9,4.67576312]
[1735386332276,0.74918,3355.0,3354.8,0.2986]
[1735386332668,0.4506,3355.0,3354.8,0.2986]
[1735386333071,0.4506,3355.0,3354.6,4.39103774]
[1735386333278,0.74918,3355.0,3354.6,4.39103774]
[1735386333572,0.74918,3355.0,3354.8,0.29859]
[1735386333772,0.74918,3355.0,3354.7,0.2986]
[1735386334674,0.4506,3355.0,3354.6,1.18323774]
[1735386334874,0.4506,3355.0,3354.8,0.2986]
[1735386335574,0.4506,3355.0,3354.9,0.29859]
[1735386337377,0.4506,3355.0,3354.8,1.04652774]
[1735386339264,0.74918,3355.0,3354.7,0.2986]
[1735386341069,0.74919,3355.0,3354.7,0.2986]
[1735386341270,0.4506,3355.0,3354.6,5.85900086]
[1735386341471,0.74918,3355.0,3354.7,0.2986]
[1735386343075,1.19853774,3355.0,3354.6,0.4353]
[1735386343277,0.74793774,3354.8,3354.5,4.67576312]
[1735386343578,0.29861,3354.7,3354.5,4.67576312]
[1735386343773,0.8779,3354.6,3354.5,4.67576312]
[1735386344076,1.3474,3354.6,3354.5,4.67576312]
[1735386344479,1.3474,3354.6,3354.5,4.97438312]
[1735386344680,1.3474,3354.6,3354.5,0.29862]
[1735386344977,0.29862,3354.5,3354.4,3.2078]
[1735386345175,2.39395774,3354.6,3354.4,3.2078]
[1735386346075,2.39395774,3354.6,3354.3,0.73964]
[1735386346076,2.39395774,3354.6,3354.3,3.94744]
[1735386346874,2.39395774,3354.6,3354.4,0.29863]
[1735386347079,2.09533774,3354.6,3354.4,0.29863]
[1735386347378,1.3474,3354.6,3354.4,0.29863]
[1735386347981,0.894,3354.6,3354.4,0.29863]
[1735386350885,1.19262,3354.6,3354.4,0.29863]
[1735386351783,0.894,3354.6,3354.4,0.29863]
[1735386351985,1.19262,3354.6,3354.4,0.29863]
[1735386353386,0.29862,3354.5,3354.3,3.94744]
[1735386353581,1.19262,3354.6,3354.3,3.94744]
[1735386356291,0.894,3354.6,3354.3,3.2078]
[1735386356595,0.29863,3354.4,3354.3,3.2078]
[1735386356787,0.29865,3354.2,3353.8,0.4531]
[1735386356978,0.4508,3354.1,3353.8,0.4531]
[1735386357183,0.9105,3354.1,3353.9,0.29867]
[1735386357386,0.9105,3354.1,3353.8,0.4531]
[1735386357583,0.9105,3354.1,3353.9,0.29867]
[1735386358889,0.9105,3354.1,3354.0,0.29867]
[1735386359986,0.9105,3354.1,3353.9,0.74793774]
[1735386360187,0.9105,3354.1,3353.9,1.04660774]
[1735386361790,0.9105,3354.1,3353.9,0.29867]
[1735386364092,0.74793774,3354.4,3353.9,0.74793774]
[1735386364295,1.19503774,3354.4,3354.2,0.29865]
[1735386364794,0.29865,3354.3,3354.0,0.29866]
[1735386364999,1.63223774,3354.4,3353.9,0.74793774]
[1735386365391,0.74793774,3354.2,3354.0,0.29867]
[1735386365802,0.74793774,3354.2,3353.8,0.4531]
[1735386366097,0.74793774,3354.2,3353.9,0.29867]
[1735386366295,0.74793774,3354.2,3353.8,0.4531]
[1735386366492,0.74793774,3354.0,3353.8,0.4531]
[1735386366800,0.4568,3353.9,3353.8,0.4531]
[1735386366998,0.8991,3353.9,3353.7,3.2078]
[1735386367298,0.2987,3353.7,3353.4,4.97448312]
[1735386367697,0.74793774,3353.8,3353.3,8.18228312]
[1735386367698,0.29871,3353.6,3353.3,8.18228312]
[1735386368097,0.4423,3353.5,3353.3,8.18228312]
[1735386368600,0.4423,3353.5,3353.3,7.88356312]
[1735386368799,0.4568,3353.4,3353.3,3.2078]
[1735386369204,0.4568,3353.4,3353.3,3.50653]
[1735386370602,0.4423,3353.5,3353.4,0.29872]
[1735386370897,0.4552,3353.8,3353.6,0.29869]
[1735386371099,0.4552,3353.8,3353.7,0.74469]
[1735386374602,1.50182774,3353.8,3353.5,0.29871]
[1735386374798,1.96662774,3353.8,3353.5,0.29871]
[1735386375704,1.66793774,3353.8,3353.4,1.63643774]
[1735386375995,1.66793774,3353.8,3353.6,0.2987]
[1735386376401,0.92,3353.8,3353.6,0.2987]
[1735386377301,0.4552,3353.8,3353.6,0.2987]
[1735386377697,0.75389,3353.8,3353.5,0.29871]
[1735386379192,1.22159,3353.8,3353.5,0.29871]
[1735386379396,1.22159,3353.8,3353.4,1.17853774]
[1735386379601,1.22159,3353.8,3353.6,0.2987]
[1735386380502,0.4552,3353.8,3353.6,0.74793774]
[1735386380705,0.4552,3353.8,3353.7,0.29869]
[1735386381505,0.4584,3353.9,3353.6,0.74793774]
[1735386381703,0.4584,3353.9,3353.8,0.29869]
[1735386382401,3.2078,3354.4,3354.2,0.29865]
[1735386382603,3.50643,3354.4,3354.3,0.4481]
[1735386382906,0.4311,3354.5,3354.4,0.29863]
[1735386383107,4.1423,3354.9,3354.6,0.29861]
[1735386383405,0.4311,3354.8,3354.7,1.04654774]
[1735386384601,0.4311,3354.8,3354.7,0.29861]
[1735386384802,0.4311,3354.8,3354.6,0.29861]
[1735386385010,0.7297,3354.8,3354.5,1.04655774]
[1735386385204,0.7297,3354.8,3354.5,0.29862]
[1735386387202,0.7297,3354.8,3354.4,41.09863]
[1735386388105,0.4311,3354.8,3354.4,40.8]
[1735386388309,0.29864,3354.4,3354.1,3.2078]
[1735386388603,0.29865,3354.2,3354.1,3.2078]
[1735386389803,1.3579,3354.3,3354.1,3.2078]
[1735386390013,1.3579,3354.3,3354.1,3.50646]
[1735386391211,1.65654,3354.3,3354.1,3.50646]
[1735386391610,1.3579,3354.3,3354.1,3.50646]
[1735386392303,1.3579,3354.3,3354.2,0.29865]
[1735386392508,0.894,3354.3,3354.2,0.29865]
[1735386392710,0.4347,3354.3,3354.2,0.29865]
[1735386396509,1.1719,3354.8,3354.5,0.29862]
[1735386396707,0.457,3354.7,3354.2,0.29865]
[1735386397009,0.457,3354.7,3354.5,0.29862]
[1735386397402,0.457,3354.7,3354.5,41.09862]
[1735386397710,0.75561,3354.7,3354.5,0.29862]
[1735386398805,0.457,3354.7,3354.6,0.29861]
[1735386399905,3.2078,3354.9,3354.2,40.8]
[1735386400207,3.2078,3354.9,3354.8,0.2986]
[1735386403816,0.4287,3355.0,3354.8,0.2986]
[1735386404318,0.4667,3354.9,3354.8,0.2986]
[1735386407013,3.2078,3355.1,3354.5,0.4457]
[1735386407217,3.2078,3355.1,3355.0,0.29858]
[1735386409826,3.95570613,3355.1,3355.0,0.29858]
[1735386410826,0.74790613,3355.1,3355.0,0.29858]
[1735386414029,1.04647613,3355.1,3355.0,0.29858]
[1735386425741,0.29857,3355.1,3355.0,0.29858]
[1735386426838,0.76847,3355.1,3355.0,0.29858]
[1735386429243,0.29858,3355.0,3354.9,0.29858]
[1735386431143,0.72428,3355.0,3354.9,0.29858]
[1735386431334,0.2986,3354.8,3354.7,0.2986]
[1735386432847,0.2986,3354.8,3354.6,4.95262706]
[1735386433040,0.4647,3354.7,3354.6,4.95262706]
[1735386434347,0.4647,3354.7,3354.6,0.29861]
[1735386435547,0.4647,3354.7,3354.6,4.95262706]
[1735386437849,0.29859,3354.9,3354.7,0.2986]
[1735386438148,0.73829,3354.9,3354.7,0.2986]
[1735386438552,0.4397,3354.9,3354.7,0.74790613]
[1735386438751,0.4397,3354.9,3354.8,0.2986]
[1735386442952,0.4397,3354.9,3354.8,4.95261706]
[1735386445045,0.4397,3354.9,3354.8,0.2986]
[1735386450651,3.2078,3355.2,3354.7,5.40192319]
[1735386450958,3.2078,3355.2,3355.1,0.29857]
[1735386451953,3.2078,3355.2,3355.1,4.95258706]
[1735386453663,4.25426613,3355.2,3355.1,4.65401706]
[1735386453959,3.95570613,3355.2,3355.1,4.95258706]
[1735386455060,3.2078,3355.2,3355.1,4.95258706]
[1735386458062,0.466,3355.3,3355.1,4.95258706]
[1735386459564,0.466,3355.3,3355.1,4.65401706]
[1735386459761,0.466,3355.3,3355.2,0.29856]
[1735386460859,0.466,3355.3,3355.1,4.65401706]
[1735386461060,0.466,3355.3,3355.1,4.95258706]
[1735386461665,0.466,3355.3,3355.1,0.29857]
[1735386461964,0.76456,3355.3,3355.1,0.29857]
[1735386462867,0.76456,3355.3,3355.0,4.65401706]
[1735386462868,0.466,3355.3,3355.2,0.29856]
[1735386465354,0.76455,3355.3,3355.2,0.29856]
[1735386471762,0.466,3355.3,3355.2,0.29856]
[1735386472168,0.76455,3355.3,3355.2,0.29856]
[1735386472770,0.466,3355.3,3355.2,0.29856]
[1735386473969,0.76455,3355.3,3355.2,0.29856]
[1735386476272,0.76455,3355.3,3355.1,0.29856]
[1735386479579,0.466,3355.3,3355.0,5.40192319]
[1735386479978,0.76455,3355.3,3355.1,0.29856]
[1735386480783,0.466,3355.3,3355.0,5.40192319]
[1735386480973,0.466,3355.3,3355.2,0.29856]
[1735386482884,0.76455,3355.3,3355.2,0.29856]
[1735386483387,0.76455,3355.3,3355.0,0.74790613]
[1735386483388,0.466,3355.3,3355.0,0.74790613]
[1735386483685,0.76455,3355.3,3355.1,0.29856]
[1735386485776,0.76455,3355.3,3355.0,0.74790613]
[1735386485988,0.466,3355.3,3355.2,0.29856]
[1735386489492,0.76455,3355.3,3355.1,0.29856]
[1735386489692,0.466,3355.3,3354.9,0.4575]
[1735386489893,0.466,3355.3,3355.2,0.29856]
[1735386490288,0.76455,3355.3,3355.1,4.95258706]
[1735386491195,0.76455,3355.3,3355.2,0.29856]
[1735386491896,0.466,3355.3,3355.2,0.29856]
[1735386492298,0.466,3355.3,3355.1,4.65401706]
[1735386492492,0.76456,3355.3,3355.1,4.95258706]
[1735386493000,0.76456,3355.3,3355.1,4.65401706]
[1735386493199,0.76456,3355.3,3355.2,0.29856]
[1735386493901,0.466,3355.3,3355.2,0.29856]
[1735386494898,0.466,3355.3,3355.1,4.65401706]
[1735386495102,0.466,3355.3,3355.2,0.29856]
[1735386498804,0.466,3355.3,3355.1,0.29856]
[1735386499299,0.466,3355.3,3355.0,4.65401706]
[1735386499496,0.466,3355.3,3355.2,0.29856]
[1735386499700,0.466,3355.3,3355.1,0.29857]
[1735386505008,0.466,3355.3,3355.0,0.29858]
[1735386505199,0.466,3355.3,3355.1,4.95257706]
[1735386505405,0.76456,3355.3,3355.1,4.95257706]